[Event "FRA-ch Youth 2017"]
[Site "Belfort"]
[Date "2017.04.21"]
[Round "7"]
[White "Vernet, Solene"]
[Black "Haussernot, Cecile"]
[Result "0-1"]
[ECO "A46"]
[WhiteElo "1863"]
[BlackElo "2107"]
[Annotator "NA"]
[PlyCount "74"]
[EventDate "2017.??.??"]
[EventCountry "FRA"]
[SourceTitle "playchess.com"]
[Source "ChessBase"]
[SourceQuality "1"]
[TimeControl "5400+30"]

1. d4 {[%emt 0:00:00]} Nf6 {[%emt 0:00:05]} 2. Nf3 {[%emt 0:00:00]} e6 {[%emt 0:00:04]} 3. g3 {[%emt 0:00:00]} c5 {[%emt 0:02:07]} 4. Bg2 {[%emt 0:00:00]} Nc6 {[%emt 0:00:23]} 5. O-O {[%emt 0:00:21]} cxd4 {[%emt 0:03:14]} 6. Nxd4 {[%emt 0:00:38]} Bc5 {[%emt 0:02:29]} 7. Nb3 {[%emt 0:04:12] LiveBook: 73 Games} Bb6 {[%emt 0:00:35]} 8. c4 {[%emt 0:02:32]} a5 {[%emt 0:01:51]} 9. a4 {[%emt 0:04:18]} d5 {[%emt 0:19:16]} 10. Na3 {[%emt 0:02:49]} O-O {[%emt 0:03:44]} 11. Bg5 {[%emt 0:22:02]} Nb4 {[%emt 0:06:38]} (11... h6 $11 12. Bf4 e5 13. cxd5 Nxd5) 12. cxd5 {[%emt 0:02:19]} exd5 {[%emt 0:00:17]} 13. Nc2 {[%emt 0:01:56]} Nxc2 {[%emt 0:01:45]} 14. Qxc2 {[%emt 0:00:07]} h6 {[%emt 0:04:19]} 15. Bf4 $15 {[%emt 0:08:16]} Be6 {[%emt 0:01:29]} 16. Rfd1 {[%emt 0:02:18]} Rc8 {[%emt 0:05:34]} 17. Qd3 {[%emt 0:06:31]} Qd7 {[%emt 0:01:08]} 18. Nd4 {[%emt 0:03:28]} Bh3 {[%emt 0:01:32]} 19. Nb5 {[%emt 0:04:02]} Bf5 {[%emt 0:05:27]} 20. Qb3 {[%emt 0:01:55]} Bc2 {[%emt 0:00:39]} 21. Qf3 {[%emt 0:02:18]} Bxd1 {[%emt 0:00:37]} 22. Rxd1 {[%emt 0:00:03]} Qe6 {[%emt 0:00:43]} 23. Qd3 {[%emt 0:08:55]} Rfd8 {[%emt 0:00:48]} 24. Rc1 {[%emt 0:02:14]} Ne4 {[%emt 0:01:56]} 25. Nd4 {[%emt 0:05:33]} Qf6 {[%emt 0:02:13]} 26. Rxc8 {[%emt 0:01:45]} Rxc8 {[%emt 0:00:10]} 27. Be3 {[%emt 0:00:33]} Bxd4 {[%emt 0:00:51]} 28. Bxd4 {[%emt 0:00:21]} Rc1+ {[%emt 0:00:33]} 29. Bf1 {[%emt 0:00:04]} Qe6 {[%emt 0:00:23]} 30. Be3 {[%emt 0:04:32]} Ra1 {[%emt 0:04:22]} 31. Kg2 {[%emt 0:00:09]} Rxa4 {[%emt 0:00:55]} 32. Qb5 {[%emt 0:00:35]} Rb4 {[%emt 0:00:42]} 33. Qxa5 {[%emt 0:00:05]} Rxb2 {[%emt 0:00:08]} 34. Bd4 {[%emt 0:00:11]} Rb1 {[%emt 0:00:46]} 35. e3 {[%emt 0:00:25]} Qf5 {[%emt 0:01:30]} 36. f3 {[%emt 0:01:56]} Ng5 {[%emt 0:01:24]} 37. Be2 {[%emt 0:00:55]} Qh3+ {[%emt 0:00:10]} 0-1

[Event "FRA-ch Youth 2017"]
[Site "Belfort"]
[Date "2017.04.21"]
[Round "7"]
[White "Razafindratsima, Timothe"]
[Black "Papadiamandis, Elliot"]
[Result "0-1"]
[ECO "B52"]
[WhiteElo "1830"]
[BlackElo "1944"]
[Annotator "NA"]
[PlyCount "136"]
[EventDate "2017.??.??"]
[EventCountry "FRA"]
[SourceTitle "playchess.com"]
[Source "ChessBase"]
[SourceQuality "1"]
[TimeControl "5400+30"]

1. e4 {[%emt 0:00:00]} c5 {[%emt 0:00:56]} 2. Nf3 {[%emt 0:00:00]} d6 {[%emt 0:00:08]} 3. Bb5+ {[%emt 0:00:00]} Bd7 {[%emt 0:00:08]} 4. Bxd7+ {[%emt 0:00:09]} Qxd7 {[%emt 0:00:05]} 5. c4 {[%emt 0:00:31]} Nc6 {[%emt 0:00:31]} 6. d4 {[%emt 0:00:35]} cxd4 {[%emt 0:00:07]} 7. Nxd4 {[%emt 0:00:10]} Nf6 {[%emt 0:00:18]} 8. Nc3 {[%emt 0:00:18]} g6 {[%emt 0:00:26]} 9. b3 {[%emt 0:00:22]} Bg7 {[%emt 0:00:45]} 10. Bb2 {[%emt 0:00:11] LiveBook: 40 Games} O-O {[%emt 0:01:14]} 11. O-O {[%emt 0:00:08]} e6 {[%emt 0:09:39] B52: Sicilian: Moscow Variation with 3...Bd7} (11... Rac8 12. Re1 Rfd8 13. Nd5 Ne8 14. Qd2 e6 15. Ne3 Nf6 16. Qc2 d5 17. e5 Nh5 18. Rad1 Qe7 19. g3 Rb8 20. Bc3 Qa3 21. Rd3 a5 22. Red1 Qc5 23. Qd2 Rdc8 {½-½ (23) Yu,Y (2725)-Lu,S (2607) Shenzhen 2016}) 12. Qd2 {[%emt 0:01:18]} a6 $146 {[%emt 0:10:59]} (12... Rfd8 13. Rfd1 a6 14. f3 Nxd4 15. Qxd4 b5 16. cxb5 axb5 17. Qf2 b4 18. Na4 Qb5 19. Rd2 {½-½ (55) Congiu,M (2300)-Panelo Munoz,M (2418) Montcada 2015}) 13. Rad1 {[%emt 0:01:10]} Rfd8 {[%emt 0:02:01]} 14. Kh1 {[%emt 0:02:17]} Nxd4 {[%emt 0:03:25]} 15. Qxd4 {[%emt 0:00:49]} Nd5 {[%emt 0:00:40]} 16. Qd2 {[%emt 0:03:59]} Nxc3 {[%emt 0:00:31]} 17. Bxc3 {[%emt 0:00:06]} Bxc3 {[%emt 0:00:21]} 18. Qxc3 {[%emt 0:00:05]} Qc6 {[%emt 0:00:15]} 19. Qe3 {[%emt 0:01:39]} d5 {[%emt 0:11:15]} 20. Qg5 {[%emt 0:05:14]} d4 {[%emt 0:02:10]} 21. Qe5 {[%emt 0:04:16]} Qd6 {[%emt 0:01:18]} 22. Qxd6 {[%emt 0:00:19]} Rxd6 {[%emt 0:00:01]} 23. e5 {[%emt 0:00:24]} Rd7 {[%emt 0:00:11]} 24. Rd3 $11 {[%emt 0:00:33]} b5 {[%emt 0:11:58]} 25. c5 {[%emt 0:12:27]} Rd5 {[%emt 0:03:19]} 26. b4 {[%emt 0:01:11]} a5 {[%emt 0:04:39]} 27. a3 {[%emt 0:01:23]} axb4 {[%emt 0:00:19]} 28. axb4 {[%emt 0:00:12]} Ra4 {[%emt 0:01:48]} 29. Rb1 {[%emt 0:01:19]} Rxe5 {[%emt 0:01:57]} 30. Rxd4 {[%emt 0:00:12]} Re2 {[%emt 0:03:20]} 31. h3 {[%emt 0:12:17]} Rxf2 {[%emt 0:04:40]} 32. Rd8+ {[%emt 0:01:53]} Kg7 {[%emt 0:00:05]} 33. Rb8 {[%emt 0:00:27]} Raa2 {[%emt 0:05:27]} 34. Rg1 {[%emt 0:01:10]} e5 {[%emt 0:10:30]} 35. Kh2 {[%emt 0:03:47]} e4 {[%emt 0:01:43]} 36. Kg3 {[%emt 0:01:34]} e3 {[%emt 0:04:02]} 37. Re1 {[%emt 0:11:04]} Rxg2+ {[%emt 0:01:05]} 38. Kf3 {[%emt 0:00:42]} Rh2 {[%emt 0:00:31]} 39. Kxe3 {[%emt 0:00:55]} Rxh3+ {[%emt 0:00:40]} 40. Kd4 {[%emt 0:09:53]} Rd2+ {[%emt 0:01:25]} 41. Ke5 {[%emt 0:03:15]} Rh5+ {[%emt 0:03:31]} 42. Ke4 {[%emt 0:00:39]} Rh4+ {[%emt 0:00:24]} 43. Ke3 {[%emt 0:00:28]} Rdd4 {[%emt 0:00:34]} 44. Rf1 {[%emt 0:10:35]} Rxb4 {[%emt 0:01:12]} 45. Rb7 {[%emt 0:01:01]} Rbe4+ {[%emt 0:00:44]} 46. Kd3 {[%emt 0:00:39]} Ref4 {[%emt 0:00:52]} 47. Rxf4 Rxf4 48. Rxb5 {[%emt 0:01:18]} Rf1 {[%emt 0:01:07]} 49. Kd4 {[%emt 0:00:43]} Rc1 {[%emt 0:00:35]} 50. Ke5 {[%emt 0:00:22]} h5 {[%emt 0:00:16]} 51. Kd6 {[%emt 0:00:25]} h4 {[%emt 0:00:30]} 52. c6 {[%emt 0:01:17]} h3 {[%emt 0:00:23]} 53. Rb2 {[%emt 0:00:05]} g5 {[%emt 0:00:32]} 54. c7 {[%emt 0:00:58]} g4 {[%emt 0:00:24]} 55. Rb4 {[%emt 0:00:42]} f5 {[%emt 0:00:28]} 56. Rb7 {[%emt 0:00:52]} Kg6 {[%emt 0:00:15]} 57. Rb8 {[%emt 0:00:57]} h2 {[%emt 0:00:27]} 58. Rh8 {[%emt 0:00:58]} g3 {[%emt 0:00:03]} 59. Rg8+ {[%emt 0:01:15]} Kh7 {[%emt 0:00:17]} 60. Rxg3 {[%emt 0:00:48]} h1=Q {[%emt 0:00:09]} 61. Kd7 {[%emt 0:00:21]} Qc6+ {[%emt 0:00:03]} 62. Ke7 {[%emt 0:00:19]} Qxc7+ {[%emt 0:00:04]} 63. Kf6 {[%emt 0:00:10]} Qxg3 {[%emt 0:00:05]} 64. Ke6 {[%emt 0:00:12]} Rd1 {[%emt 0:00:04]} 65. Kf6 {[%emt 0:00:13]} Re1 {[%emt 0:00:08]} 66. Kxf5 {[%emt 0:00:20]} Qf3+ {[%emt 0:00:06]} 67. Kg5 {[%emt 0:00:11]} Rg1+ {[%emt 0:00:03]} 68. Kh4 {[%emt 0:00:14]} Qg4# {[%emt 0:00:02]} 0-1

[Event "FRA-ch Youth 2017"]
[Site "Belfort"]
[Date "2017.04.21"]
[Round "7"]
[White "De Talance, Berenice"]
[Black "Djidjeli, Sarah"]
[Result "0-1"]
[ECO "D36"]
[WhiteElo "1757"]
[BlackElo "1934"]
[Annotator "NA"]
[PlyCount "64"]
[EventDate "2017.??.??"]
[EventCountry "FRA"]
[SourceTitle "playchess.com"]
[Source "ChessBase"]
[SourceQuality "1"]
[TimeControl "5400+30"]

1. c4 {[%emt 0:00:00]} e6 {[%emt 0:00:06]} 2. d4 {[%emt 0:00:00]} d5 {[%emt 0:00:07]} 3. cxd5 {[%emt 0:00:19]} exd5 {[%emt 0:00:06]} 4. Nc3 {[%emt 0:00:40]} c6 {[%emt 0:00:26]} 5. Qc2 {[%emt 0:00:44]} Nf6 {[%emt 0:00:21]} 6. Bg5 {[%emt 0:00:16]} Be7 {[%emt 0:00:34]} 7. Nf3 {[%emt 0:01:17]} h6 {[%emt 0:01:02]} 8. Bh4 {[%emt 0:00:47] LiveBook: 17 Games} Nbd7 {[%emt 0:04:20]} 9. e3 {[%emt 0:00:25]} O-O {[%emt 0:02:53]} 10. Bd3 {[%emt 0:00:24]} c5 {[%emt 0:01:35]} 11. h3 {[%emt 0:05:55] D36: Queen's Gambit Declined: Exchange Variation: Main line (5 Bg5 c6 6 Qc2)} (11. O-O cxd4 12. Nxd4 Ne5 13. Bf5 g6 14. Bxc8 Rxc8 15. Qb3 Ne4 16. Bg3 Nd2 17. Qxb7 Nxf1 18. Bxe5 Nd2 19. Nc6 Rxc6 20. Qxc6 Nc4 21. Bd4 {1-0 (21) Flumbort,A (2471)-Jakab,A (2442) Budapest 2003}) 11... a6 {[%emt 0:04:26]} 12. Ne5 $146 {[%emt 0:26:38]} (12. dxc5 Nxc5 13. Be2 Nce4 14. Nxe4 dxe4 15. Nd2 g5 16. Bg3 Bb4 17. a3 Bxd2+ 18. Qxd2 Qxd2+ 19. Kxd2 {1-0 (40) Primel,D (1989)-Le Scraigne,E (1791) Angers 2008}) 12... cxd4 {[%emt 0:08:49]} 13. exd4 {[%emt 0:00:39]} Nxe5 $1 {[%emt 0:01:42]} 14. dxe5 {[%emt 0:00:08]} Nd7 {[%emt 0:00:25]} 15. Bg3 {[%emt 0:03:10]} d4 {[%emt 0:01:11]} 16. Ne4 {[%emt 0:07:03]} Qa5+ {[%emt 0:03:19]} 17. Nd2 {[%emt 0:00:37]} Bb4 {[%emt 0:05:12]} 18. a3 {[%emt 0:01:59]} Nxe5 {[%emt 0:05:21]} 19. O-O-O $2 {[%emt 0:05:37]} (19. O-O $15 Nxd3 20. axb4) 19... Nxd3+ $19 {[%emt 0:04:03]} 20. Qxd3 {[%emt 0:00:15]} Bf5 {[%emt 0:01:35]} 21. Ne4 {[%emt 0:12:47]} Qd5 {[%emt 0:06:27]} 22. f3 {[%emt 0:05:33]} Rfc8+ {[%emt 0:02:02]} 23. Kb1 {[%emt 0:00:12]} Be6 {[%emt 0:01:34]} 24. b3 {[%emt 0:05:02]} Bxa3 {[%emt 0:01:07]} 25. Ka2 {[%emt 0:01:59]} Qa5 {[%emt 0:01:54]} 26. Ra1 {[%emt 0:02:09]} Bb4+ {[%emt 0:06:19]} 27. Kb1 {[%emt 0:01:22]} Qb6 {[%emt 0:00:37]} 28. Be1 {[%emt 0:14:53]} Bxe1 {[%emt 0:01:24]} 29. Rxe1 {[%emt 0:00:05]} Bxb3 {[%emt 0:00:32]} 30. Qd2 {[%emt 0:02:04]} Bc2+ {[%emt 0:01:36]} 31. Kc1 {[%emt 0:00:44]} Bxe4+ {[%emt 0:01:01]} 32. Kd1 {[%emt 0:00:17]} Qb3+ {[%emt 0:00:10]} 0-1

[Event "FRA-ch Youth 2017"]
[Site "Belfort"]
[Date "2017.04.21"]
[Round "7"]
[White "Emmenecker, Pierre-Antoine"]
[Black "Roux, Baptiste"]
[Result "1/2-1/2"]
[ECO "B22"]
[WhiteElo "1737"]
[BlackElo "1934"]
[Annotator "NA"]
[PlyCount "139"]
[EventDate "2017.??.??"]
[EventCountry "FRA"]
[SourceTitle "playchess.com"]
[Source "ChessBase"]
[SourceQuality "1"]
[TimeControl "5400+30"]

1. e4 {[%emt 0:00:00]} c5 {[%emt 0:00:07]} 2. c3 {[%emt 0:00:00]} Nf6 {[%emt 0:00:17]} 3. e5 {[%emt 0:00:00]} Nd5 {[%emt 0:00:11]} 4. d4 {[%emt 0:00:00]} cxd4 {[%emt 0:00:07]} 5. Qxd4 {[%emt 0:00:00]} e6 {[%emt 0:00:41]} 6. Nf3 {[%emt 0:00:15]} Nc6 {[%emt 0:00:56]} 7. Qe4 {[%emt 0:00:12]} d6 {[%emt 0:01:45]} 8. Bb5 {[%emt 0:00:17]} Bd7 {[%emt 0:02:21]} 9. c4 {[%emt 0:00:19]} Nb6 {[%emt 0:01:30] B22: Sicilian: 2 c3} (9... Nc7 10. exd6 Bxd6 11. O-O Nxb5 12. cxb5 Ne7 13. Nc3 Qb8 14. Rd1 Bc7 15. Qd4 Qc8 16. Qxg7 Rg8 17. Qxh7 e5 18. Ne4 Rg6 19. Nh4 Bf5 20. Nxg6 Nxg6 21. Qg8+ Nf8 22. Bh6 Ke7 23. Qg5+ {1-0 (23) Mamedyarov,S (2719)-Polgar,J (2680) Moscow 2009}) 10. Nc3 {[%emt 0:01:02]} a6 {[%emt 0:00:44]} 11. Bg5 {[%emt 0:00:17]} Qc7 {[%emt 0:02:22]} 12. exd6 {[%emt 0:01:17]} Bxd6 {[%emt 0:00:42]} 13. O-O-O {[%emt 0:01:35]} h6 $146 {[%emt 0:00:40]} (13... O-O 14. Be3 f5 15. Qd3 Bf4 16. c5 Nb4 17. cxb6 Nxd3+ 18. Rxd3 Bxe3+ 19. fxe3 Bxb5 20. bxc7 Bxd3 {1-0 (38) Zifroni,D (2500)-Wojtkiewicz,A (2575) Kazan 1997}) 14. Be3 {[%emt 0:02:07]} Bb4 {[%emt 0:02:19]} 15. Bxc6 {[%emt 0:06:25]} Bxc6 {[%emt 0:01:18]} 16. Qd4 {[%emt 0:00:16]} Bxc3 {[%emt 0:00:48]} 17. Qxc3 {[%emt 0:00:46]} O-O {[%emt 0:02:07]} 18. Qe5 {[%emt 0:17:32]} Qxe5 {[%emt 0:04:38]} 19. Nxe5 {[%emt 0:00:08]} Na4 {[%emt 0:04:10]} (19... Nxc4 {might work better.} 20. Nxc4 Rfc8) 20. Nxc6 {[%emt 0:01:28]} bxc6 {[%emt 0:00:02]} 21. Rd6 {[%emt 0:10:28]} Rfc8 {[%emt 0:03:28]} 22. Kc2 {[%emt 0:00:39]} Rab8 {[%emt 0:01:30]} 23. b3 {[%emt 0:00:20]} Nb6 {[%emt 0:00:40]} 24. Bc5 {[%emt 0:02:19]} Rb7 {[%emt 0:05:59]} (24... Nd5 {keeps fighting.} 25. cxd5 cxd5) 25. Rhd1 {[%emt 0:00:54]} Rcc7 {[%emt 0:05:09]} 26. Bxb6 {[%emt 0:07:34]} Rxb6 {[%emt 0:00:02]} 27. Rd8+ {[%emt 0:00:13]} Kh7 {[%emt 0:00:13]} 28. R8d7 {[%emt 0:00:06]} Rbb7 {[%emt 0:00:17]} 29. Rxc7 {[%emt 0:00:11]} Rxc7 {[%emt 0:00:05]} 30. Rd8 {[%emt 0:00:13]} g5 {[%emt 0:01:07]} 31. Ra8 {[%emt 0:00:07]} f5 $18 {[%emt 0:00:22]} 32. Re8 {[%emt 0:08:13]} h5 {[%emt 0:04:53]} 33. Rxe6 {[%emt 0:00:12]} f4 {[%emt 0:01:00]} 34. Kd3 {[%emt 0:03:46]} Kg7 {[%emt 0:08:59]} 35. Rd6 {[%emt 0:04:05]} a5 {[%emt 0:03:38]} 36. Kd4 {[%emt 0:01:05]} Re7 {[%emt 0:01:16]} 37. Kd3 {[%emt 0:01:27]} Rc7 {[%emt 0:00:12]} 38. Rd8 {[%emt 0:03:28]} a4 {[%emt 0:05:20]} 39. b4 {[%emt 0:03:13]} a3 {[%emt 0:02:53]} 40. Rd6 {[%emt 0:01:44]} Rb7 {[%emt 0:01:18]} 41. Kc3 {[%emt 0:00:20]} Re7 {[%emt 0:00:17]} 42. Kd2 {[%emt 0:05:45]} Rb7 {[%emt 0:00:26]} 43. Kc3 {[%emt 0:00:21]} Re7 {[%emt 0:00:06]} 44. b5 {[%emt 0:01:00]} cxb5 {[%emt 0:00:30]} 45. cxb5 {[%emt 0:00:08]} Re2 {[%emt 0:00:33]} 46. Rd2 {[%emt 0:00:27]} Re1 {[%emt 0:00:07]} 47. Kb3 {[%emt 0:06:35]} Rb1+ {[%emt 0:00:22]} 48. Kxa3 {[%emt 0:00:07]} Rxb5 {[%emt 0:00:06]} 49. Ka4 {[%emt 0:00:07]} Rb1 {[%emt 0:01:24]} 50. Ka5 {[%emt 0:00:59]} Kf6 {[%emt 0:00:21]} 51. a4 {[%emt 0:00:06]} h4 {[%emt 0:02:07]} 52. f3 {[%emt 0:01:56]} h3 {[%emt 0:03:05]} 53. gxh3 {[%emt 0:00:29]} Rf1 {[%emt 0:00:12]} 54. Kb6 {[%emt 0:07:43]} Rxf3 55. Ra2 Rxh3 {[%emt 0:00:58]} 56. a5 {[%emt 0:00:35]} Kf5 {[%emt 0:06:20]} 57. a6 {[%emt 0:00:14]} g4 {[%emt 0:02:48]} 58. a7 {[%emt 0:04:18]} Rh8 {[%emt 0:00:05]} 59. Kc5 {[%emt 0:01:14]} g3 {[%emt 0:03:41]} 60. hxg3 {[%emt 0:01:58]} fxg3 {[%emt 0:00:05]} 61. a8=Q {[%emt 0:00:15]} Rxa8 {[%emt 0:00:05]} 62. Rxa8 {[%emt 0:00:06]} Ke4 {[%emt 0:00:07]} 63. Ra2 {[%emt 0:00:54]} Kf3 {[%emt 0:00:16]} 64. Kd4 {[%emt 0:00:45]} g2 {[%emt 0:00:08]} 65. Ra1 {[%emt 0:00:27]} Kf2 {[%emt 0:00:11]} 66. Ra2+ {[%emt 0:00:04]} Kf3 {[%emt 0:00:16]} 67. Ra3+ {[%emt 0:00:39]} Kf2 {[%emt 0:00:19]} 68. Ra2+ {[%emt 0:00:14]} Kf3 {[%emt 0:00:09]} 69. Rxg2 {[%emt 0:00:02]} Kxg2 {[%emt 0:00:07]} 70. Kd5 1/2-1/2

[Event "FRA-ch Youth 2017"]
[Site "Belfort"]
[Date "2017.04.21"]
[Round "7"]
[White "Le Gouic, Brendan"]
[Black "Lever, Erwan"]
[Result "1/2-1/2"]
[ECO "A00"]
[WhiteElo "1736"]
[BlackElo "2129"]
[Annotator "NA"]
[PlyCount "131"]
[EventDate "2017.??.??"]
[EventCountry "FRA"]
[SourceTitle "playchess.com"]
[Source "ChessBase"]
[SourceQuality "1"]
[TimeControl "5400+30"]

1. g3 {[%emt 0:00:00]} Nf6 {[%emt 0:00:08]} 2. Bg2 {[%emt 0:00:06]} g6 {[%emt 0:00:05]} 3. c4 {[%emt 0:00:20]} Bg7 {[%emt 0:03:24]} 4. Nc3 {[%emt 0:00:58]} O-O {[%emt 0:00:33]} 5. e4 {[%emt 0:01:20]} d6 {[%emt 0:00:12]} 6. Nge2 {[%emt 0:01:03]} e5 {[%emt 0:09:18]} 7. d4 {[%emt 0:00:37]} Nbd7 {[%emt 0:00:48] LiveBook: 39 Games} 8. O-O {[%emt 0:01:30]} a5 {[%emt 0:03:22]} 9. b3 {[%emt 0:03:31]} exd4 {[%emt 0:08:13]} 10. Nxd4 {[%emt 0:00:44]} Nc5 {[%emt 0:04:15] E68: King's Indian: Fianchetto: 6...Nbd7 7 0-0 e5 8 e4} 11. h3 {[%emt 0:02:24]} Nfd7 {[%emt 0:10:29]} (11... Re8 12. Re1 Nfd7 13. Be3 c6 14. Qc2 Qc7 15. Rad1 Ne5 16. f4 Ned7 17. Bf2 Ne6 18. Rd2 Nf6 19. Red1 Nc5 20. Nde2 Bf8 21. Bxc5 dxc5 22. e5 {1-0 (54) Yaksin,O (2414)-Barhudarian,R (2325) St Petersburg 2011}) 12. f4 $146 {[%emt 0:03:32]} (12. Be3 Ne6 13. Rc1 Ndc5 14. Kh2 Bd7 15. f4 Nxd4 16. Bxd4 Bxd4 17. Qxd4 Bc6 18. Nd5 Bxd5 19. Qxd5 {½-½ (37) Moeller,M-Berresheim,H Worms 1992}) 12... Ne6 {[%emt 0:02:23]} (12... Re8 $11 {keeps the balance.}) 13. Be3 {[%emt 0:02:39]} Ndc5 {[%emt 0:17:13]} 14. f5 {[%emt 0:09:08]} Nxd4 {[%emt 0:00:04]} 15. Bxd4 {[%emt 0:00:09]} Be5 {[%emt 0:11:39]} 16. f6 {[%emt 0:10:26]} c6 {[%emt 0:04:03]} 17. Qd2 {[%emt 0:01:38]} Ne6 {[%emt 0:00:57]} 18. Bxe5 {[%emt 0:02:20]} dxe5 {[%emt 0:00:01]} 19. Qf2 {[%emt 0:02:03]} Qd4 $11 {[%emt 0:02:11]} 20. Ne2 {[%emt 0:02:30]} Qxf2+ {[%emt 0:01:05]} 21. Kxf2 {[%emt 0:00:22]} a4 {[%emt 0:07:34]} 22. Ke3 {[%emt 0:13:01]} Rd8 {[%emt 0:01:27]} 23. b4 {[%emt 0:02:26]} Nd4 {[%emt 0:04:24]} 24. Rac1 {[%emt 0:03:36]} Be6 {[%emt 0:00:36]} 25. a3 {[%emt 0:01:59]} Nxe2 {[%emt 0:01:57]} 26. Kxe2 {[%emt 0:00:49]} Rd4 {[%emt 0:00:04]} 27. Rfd1 {[%emt 0:01:00]} Bxc4+ {[%emt 0:01:46]} 28. Ke3 {[%emt 0:01:24]} Rad8 {[%emt 0:00:14]} 29. Rxd4 {[%emt 0:00:41]} exd4+ {[%emt 0:01:33]} 30. Kf4 {[%emt 0:01:08]} d3 {[%emt 0:02:01]} 31. Rxc4 {[%emt 0:00:41]} d2 {[%emt 0:00:03]} 32. Bf3 {[%emt 0:00:09]} d1=Q {[%emt 0:00:34]} 33. Bxd1 {[%emt 0:00:06]} Rxd1 {[%emt 0:00:02]} 34. b5 {[%emt 0:00:21]} h6 {[%emt 0:01:05]} 35. bxc6 {[%emt 0:00:26]} bxc6 {[%emt 0:00:07]} 36. Rxa4 {[%emt 0:00:20]} g5+ {[%emt 0:01:10]} 37. Kg4 {[%emt 0:01:00]} Kh7 {[%emt 0:00:51]} 38. Rc4 {[%emt 0:01:12]} Kg6 {[%emt 0:00:38]} 39. Rxc6 {[%emt 0:09:12]} Rd3 {[%emt 0:00:08]} 40. h4 {[%emt 0:00:26]} h5+ {[%emt 0:01:25]} 41. Kh3 {[%emt 0:00:08]} g4+ {[%emt 0:00:04]} 42. Kg2 {[%emt 0:00:11]} Rxa3 {[%emt 0:00:09]} 43. Rc5 {[%emt 0:01:22]} Ra2+ {[%emt 0:01:08]} 44. Kf1 {[%emt 0:00:15]} Ra4 {[%emt 0:00:52]} 45. e5 {[%emt 0:01:24]} Re4 {[%emt 0:00:45]} 46. Kf2 {[%emt 0:01:32]} Kf5 {[%emt 0:00:29]} 47. Rc7 {[%emt 0:00:20]} Rxe5 {[%emt 0:00:50]} 48. Rxf7 {[%emt 0:00:24]} Ra5 {[%emt 0:00:43]} 49. Rf8 {[%emt 0:01:26]} Kg6 {[%emt 0:00:51]} 50. Ke3 {[%emt 0:02:17]} Ra3+ {[%emt 0:00:36]} 51. Kf4 {[%emt 0:01:15]} Rf3+ {[%emt 0:00:05]} 52. Ke5 {[%emt 0:00:07]} Re3+ {[%emt 0:00:07]} 53. Kf4 {[%emt 0:01:40]} Rf3+ {[%emt 0:00:04]} 54. Ke4 {[%emt 0:02:02]} Rxg3 {[%emt 0:00:11]} 55. f7 {[%emt 0:00:31]} Rf3 {[%emt 0:01:01]} 56. Rg8+ {[%emt 0:00:08]} Kxf7 {[%emt 0:00:08]} 57. Rg5 {[%emt 0:00:11]} Rf1 {[%emt 0:01:14]} 58. Rxh5 {[%emt 0:00:12]} g3 {[%emt 0:00:33]} 59. Rg5 {[%emt 0:00:08]} Rh1 {[%emt 0:00:28]} 60. Rxg3 {[%emt 0:00:32]} Rxh4+ {[%emt 0:00:07]} 61. Kf3 {[%emt 0:00:15]} Kf6 {[%emt 0:00:16]} 62. Kf2 {[%emt 0:00:16]} Rf4+ {[%emt 0:00:05]} 63. Ke2 {[%emt 0:00:50]} Ke5 {[%emt 0:00:11]} 64. Ra3 {[%emt 0:00:08]} Re4+ {[%emt 0:00:10]} 65. Re3 {[%emt 0:00:12]} Rxe3+ {[%emt 0:00:06]} 66. Kxe3 {[%emt 0:00:05]} 1/2-1/2

[Event "FRA-ch Youth 2017"]
[Site "Belfort"]
[Date "2017.04.21"]
[Round "7"]
[White "Lamaze, Simon"]
[Black "Popov, Konstantin"]
[Result "0-1"]
[ECO "B40"]
[WhiteElo "1682"]
[BlackElo "2026"]
[Annotator "NA"]
[PlyCount "66"]
[EventDate "2017.??.??"]
[EventCountry "FRA"]
[SourceTitle "playchess.com"]
[Source "ChessBase"]
[SourceQuality "1"]
[TimeControl "5400+30"]

1. e4 {[%emt 0:00:00]} c5 {[%emt 0:00:42]} 2. Nf3 {[%emt 0:00:13]} e6 {[%emt 0:01:23]} 3. c4 {[%emt 0:00:59]} Nc6 {[%emt 0:03:01]} 4. Nc3 {[%emt 0:01:03]} d6 {[%emt 0:04:49]} 5. g3 {[%emt 0:02:23]} Nf6 {[%emt 0:02:31]} 6. Bg2 {[%emt 0:02:00]} Be7 {[%emt 0:01:14]} 7. O-O {[%emt 0:02:33] LiveBook: 4 Games} Nd4 {[%emt 0:01:08]} 8. d3 {[%emt 0:03:04]} O-O {[%emt 0:00:16]} 9. Nxd4 {[%emt 0:03:02]} cxd4 {[%emt 0:00:12]} 10. Ne2 {[%emt 0:00:22]} e5 {[%emt 0:00:08]} 11. f4 {[%emt 0:02:58] A36: Symmetrical English vs ...g6: 4 Bg2 Bg7} (11. Bd2 a6 12. a4 a5 13. Qc2 Nd7 14. Bh3 Nc5 15. Bxc8 Qxc8 16. b4 axb4 17. Bxb4 f5 18. Bxc5 dxc5 {0-1 (47) Greet,A (2389)-Fogarasi,T (2442) Budapest 2005}) 11... Ne8 $146 {[%emt 0:07:13]} (11... Ng4 12. h3 Nf6 13. f5 Bd7 14. g4 h6 15. Qe1 b5 16. b3 bxc4 17. bxc4 Rb8 18. Bf3 Nh7 {1-0 (39) Schmitt,H (2029)-Wiedmann,J (1686) Remote email 2012}) 12. f5 {[%emt 0:08:26]} Bg5 {[%emt 0:00:12]} 13. h4 {[%emt 0:02:19]} Bxc1 {[%emt 0:00:15]} 14. Rxc1 {[%emt 0:00:18]} Bd7 {[%emt 0:01:26]} 15. Kh2 {[%emt 0:01:37]} b5 {[%emt 0:11:43]} 16. Ng1 {[%emt 0:04:51]} bxc4 {[%emt 0:01:19]} 17. Rxc4 {[%emt 0:01:13]} d5 {[%emt 0:04:37]} ({Better is} 17... Qa5 $17 18. a4 Nf6) 18. Rc5 {[%emt 0:02:02]} (18. exd5 $15 Nd6 19. Qe2) 18... dxe4 {[%emt 0:01:54]} 19. Bxe4 {[%emt 0:00:24]} Rb8 {[%emt 0:00:08]} 20. Rf2 {[%emt 0:03:17]} Nf6 {[%emt 0:10:44]} 21. g4 {[%emt 0:03:30]} Nxe4 {[%emt 0:04:28]} 22. dxe4 {[%emt 0:00:11]} Qxh4+ {[%emt 0:00:04]} 23. Kg2 {[%emt 0:00:08]} f6 {[%emt 0:03:26]} 24. Rc7 {[%emt 0:02:09]} Rf7 {[%emt 0:00:42]} 25. Rxa7 {[%emt 0:01:18] [#]} Bxf5 $19 {[%emt 0:02:21]} 26. Rxf7 {[%emt 0:01:12]} Bxe4+ {[%emt 0:00:12]} 27. Kf1 {[%emt 0:00:04]} Kxf7 {[%emt 0:00:10]} 28. Qe2 {[%emt 0:01:06]} Bd5 {[%emt 0:00:54]} 29. b3 {[%emt 0:01:44]} Rc8 {[%emt 0:00:54]} 30. Qd1 {[%emt 0:01:20]} Qh6 {[%emt 0:01:51]} 31. Rc2 {[%emt 0:01:20]} Qf4+ {[%emt 0:01:31]} 32. Ke1 {[%emt 0:01:29]} Qe4+ {[%emt 0:02:30]} 33. Re2 {[%emt 0:00:50]} Qxg4 {[%emt 0:00:11]} 0-1